{"text_format":"3","workbook":"xlsx","n_sheets":2,"sheets":["岗位计划表定稿","xlhide"],"not_rendered":{"external_links":1,"defined_names":7},"read":"whole","date_system":"1900"}

{"sheet":"岗位计划表定稿","index":0,"n_rows":140,"n_cols":25,"rows_kept":140,"merged":[[1,0,1,24]]}
["附件2"]
["大庆市2024年下半年事业单位公开招聘工作人员岗位计划表"]
["主管部门","事业单位","招录岗位","岗位代码","招录数量","所属大类","所属小类","事业单位代码","事业单位岗位代码","性别","岗位类别","岗位层级","招聘对象","报考学历","报考学位","门类","专业类","专业名称","其他条件","考试方式","笔试类别","最低服务年限","机构类别","经费形式","岗位政策咨询电话\n"]
["中共肇州县委办公室","肇州县督查考评服务中心","科员","00510201",1,"综合管理类A类","综合管理类","005102","01","不限","管理岗位","管理岗科员岗位","不限","大学本科（预备技师（技师）班）及以上","学士学位及以上","本科：文学；\n研究生：文学（05）","不限","不限","中共党员（含预备党员）、取得与报考学历相应的学位","笔试、面试","综合管理类（A类）","5年","公益一类","全额拨款","0459-8555227"]
["中共肇州县委办公室","肇州县督查考评服务中心","科员","00510202",1,"综合管理类A类","综合管理类","005102","02","不限","管理岗位","管理岗科员岗位","不限","大学本科（预备技师（技师）班）及以上","学士学位及以上","本科：工学；\n研究生：工学（08）","不限","不限","中共党员（含预备党员）、取得与报考学历相应的学位","笔试、面试","综合管理类（A类）","5年","公益一类","全额拨款","0459-8555227"]
["肇州县水务局","肇州县水务技术保障中心","水利技术员","00510301",1,"自然科学专技类C类","自然科学专技类","005103","01","不限","专业技术岗位","专业技术职称初级岗位","不限","大学本科（预备技师（技师）班）及以上","学士学位及以上","本科：工学；\n研究生：工学（08）","本科：水利类；\n研究生：水利工程（0815）","本科：水利水电工程、水文与水资源工程、水务工程、水利科学与工程、智慧水利；\n研究生：水文学及水资源（081501）、水工结构工程（081503）、水利水电工程（081504）","取得与报考学历相应的学位","笔试、面试","自然科学专技类（C类）","5年","公益一类","全额拨款","0459-8555227"]
["肇州县水务局","肇州县涝区服务站","水利技术员","00510401",1,"自然科学专技类C类","自然科学专技类","005104","01","不限","专业技术岗位","专业技术职称初级岗位","不限","大学本科（预备技师（技师）班）及以上","学士学位及以上","本科：工学；\n研究生：工学（08）","本科：水利类；\n研究生：水利工程（0815）","本科：水利水电工程、水文与水资源工程、水务工程、水利科学与工程、智慧水利；\n研究生：水文学及水资源（081501）、水工结构工程（081503）、水利水电工程（081504）","取得与报考学历相应的学位","笔试、面试","自然科学专技类（C类）","5年","公益一类","全额拨款","0459-8555227"]
["肇州县人力资源和社会保障局","肇州县创业指导中心","会计","00510501",2,"综合管理类A类","综合管理类","005105","01","不限","专业技术岗位","专业技术职称初级岗位","不限","大学本科（预备技师（技师）班）及以上","学士学位及以上","本科：管理学；\n研究生：管理学（12）","本科：工商管理类；\n研究生：工商管理学（1202）、会计（1253）","本科：会计学、财务管理；\n研究生：企业管理（120202）、会计学（120201）、会计（125300）、财务管理（1202Z1）","取得与报考学历相应的学位","笔试、面试","综合管理类（A类）","5年","公益一类","全额拨款","0459-8555227"]
["肇州县人力资源和社会保障局","肇州县创业指导中心","交通管理员","00510502",1,"综合管理类A类","综合管理类","005105","02","不限","专业技术岗位","专业技术职称初级岗位","不限","大学本科（预备技师（技师）班）及以上","学士学位及以上","本科：工学；\n研究生：工学（08）","本科：交通运输类；\n研究生：交通运输工程（0823）、交通运输（0861）；","本科：交通运输、交通工程、交通设备与控制工程、智慧交通；\n研究生： 交通运输工程（082300）、道路与铁道工程（082301）、交通信息工程及控制（082302）、交通运输规划与管理（082303）、交通运输（086100）、道路交通运输（086102）；","取得与报考学历相应的学位","笔试、面试","综合管理类（A类）","5年","公益一类","全额拨款","0459-8555227"]
["肇州县人力资源和社会保障局","肇州县创业指导中心","人事助理","00510503",1,"综合管理类A类","综合管理类","005105","03","不限","专业技术岗位","专业技术职称初级岗位","不限","大学本科（预备技师（技师）班）及以上","学士学位及以上","本科：法学、管理学；\n研究生：法学（03）、管理学（12）","本科：法学类、工商管理类、公共管理类；\n研究生:法学（0301）、工商管理学（1202）、公共管理学（1204）","本科：法学、人力资源管理、劳动关系、劳动与社会保障；\n研究生：法学（030100）、法学理论（030101）、企业管理（120202）、社会保障（120404）","取得与报考学历相应的学位","笔试、面试","综合管理类（A类）","5年","公益一类","全额拨款","0459-8555227"]
["肇州县农业农村局","肇州县农村合作经济经营服务站","会计","00510601",1,"综合管理类A类","综合管理类","005106","01","不限","专业技术岗位","专业技术职称初级岗位","不限","大学本科（预备技师（技师）班）及以上","学士学位及以上","本科：经济学、管理学；\n研究生：经济学（02）、管理学（12）","本科：经济学类、财政学类、工商管理类；\n研究生：理论经济学（0201）、应用经济学（0202）、工商管理学（1202）、会计（1253）","本科：经济学、财政学、会计学、财务管理；\n研究生：理论经济学（020100）、应用经济学（020200）、财政学（020203）、企业管理（120202）、会计学（120201）、财务管理（1202Z1）、会计（125300）","取得与报考学历相应的学位","笔试、面试","综合管理类（A类）","5年","公益一类","全额拨款","0459-8555227"]
["肇州县农业农村局","肇州县农业技术推广中心","会计","00510701",1,"综合管理类A类","综合管理类","005107","01","不限","专业技术岗位","专业技术职称初级岗位","不限","大学本科（预备技师（技师）班）及以上","学士学位及以上","本科：经济学、管理学；\n研究生：经济学（02）、管理学（12）","本科：经济学类、财政学类、工商管理类；\n研究生：理论经济学（0201）、应用经济学（0202）、工商管理学（1202）、会计（1253）","本科：经济学、财政学、会计学、财务管理；\n研究生：理论经济学（020100）、应用经济学（020200）、财政学（020203）、企业管理（120202）、会计学（120201）、财务管理（1202Z1）、会计（125300）","取得与报考学历相应的学位","笔试、面试","综合管理类（A类）","5年","公益一类","全额拨款","0459-8555227"]
["肇州县发展和改革局","肇州县大项目服务中心","经济发展员","00510801",1,"综合管理类A类","综合管理类","005108","01","不限","专业技术岗位","专业技术职称初级岗位","不限","大学本科（预备技师（技师）班）及以上","学士学位及以上","本科：经济学、管理学；\n研究生：经济学(02)、管理学(12)","本科：经济学类、工商管理类；\n研究生：理论经济学(0201)、应用经济学(0202)、工商管理学(1202)、会计(1253)","本科：经济学、经济统计学、国民经济学、资源与环境经济学、能源经济、会计学、财务管理；\n研究生：理论经济学(020100)、政治经济学(020101)、资源与环境经济学(020106)、国民经济学(020201)、产业经济学(020205)、工商管理学（120200）、会计学（120201）、企业管理（120202）、财务管理(1202Z1)、会计（125300）","取得与报考学历相应的学位","笔试、面试","综合管理类（A类）","5年","公益一类","全额拨款","0459-8555227"]
["黑龙江肇州经济开发区管理委员会","肇州县经济开发区服务中心","综合经济员","00510901",1,"综合管理类A类","综合管理类","005109","01","不限","专业技术岗位","专业技术职称初级岗位","不限","大学本科（预备技师（技师）班）及以上","学士学位及以上","本科：经济学类；\n研究生：经济学（02） ","本科：经济学类；\n研究生：理论经济学（0201）、应用经济学（0202）","本科：经济学、经济统计学、国民经济学、商务经济学、劳动经济学、经济工程、数字经济；\n研究生:理论经济学（020100）、应用经济学（020200）、劳动经济学（020207）","取得与报考学历相应的学位","笔试、面试","综合管理类（A类）","5年","公益一类","全额拨款","0459-8555227"]
["肇州县城市管理综合执法局","肇州县地下排水服务中心","技术员","00511001",2,"综合管理类A类","综合管理类","005110","01","不限","专业技术岗位","专业技术职称初级岗位","不限","大学本科（预备技师（技师）班）及以上","学士学位及以上","本科：工学；\n研究生：工学（08）","本科：土木类；\n研究生：土木工程（0814）、土木水利（0859）","本科：土木工程、给排水科学与工程、城市地下空间工程、智能建造、城市水系统工程；\n研究生：土木工程（081400）、市政工程（081403）、供热、供燃气、通风及空调工程（081404）、市政工程（含给排水等）（085905）","取得与报考学历相应的学位","笔试、面试","综合管理类（A类）","5年","公益一类","全额拨款","0459-8555227"]
["肇州县城市管理综合执法局","物业服务中心","物业管理员","00511101",1,"综合管理类A类","综合管理类","005111","01","不限","专业技术岗位","专业技术职称初级岗位","不限","大学本科（预备技师（技师）班）及以上","学士学位及以上","本科：管理学；\n研究生：管理学（12）","本科：工商管理类；\n研究生：工商管理学（1202）、工商管理（1251）","本科：工商管理、财务管理、物业管理；\n研究生：工商管理学（120200）、企业管理（120202）、财务管理（1202Z1）、工商管理（125100）","取得与报考学历相应的学位","笔试、面试","综合管理类（A类）","5年","公益一类","全额拨款","0459-8555227"]
["肇州县城市管理综合执法局","肇州县城镇建设服务中心","园艺师","00511201",1,"自然科学专技类C类","自然科学专技类","005112","01","不限","专业技术岗位","专业技术职称初级岗位","不限","大学本科（预备技师（技师）班）及以上","学士学位及以上","本科：农学；\n研究生：农学（09）","本科：植物生产类；\n研究生：园艺学（0902）、植物保护（0904）","本科：园艺、园艺教育、植物保护；\n研究生：园艺学（090200）、果树学（090201）、蔬菜学（090202）、茶学（090203）、植物保护（090400)、植物病理学(090401)","取得与报考学历相应的学位","笔试、面试","自然科学专技类（C类）","5年","公益一类","全额拨款","0459-8555227"]
["肇州县财政局","肇州县财政国库支付中心","会计","00511301",1,"综合管理类A类","综合管理类","005113","01","不限","专业技术岗位","专业技术职称初级岗位","不限","大学本科（预备技师（技师）班）及以上","学士学位及以上","本科：经济学、管理学；\n研究生：经济学（02）、管理学（12）","本科：财政学类、工商管理类；\n研究生：应用经济学（0202）、工商管理学（1202）、会计（1253）","本科：财政学、会计学、财务管理、市场营销；\n研究生：财政学（020203）、企业管理（120202）、会计学（120201）、财务管理（1202Z1）、会计（125300)","取得与报考学历相应的学位","笔试、面试","综合管理类（A类）","5年","公益一类","全额拨款","0459-8555227"]
["肇州县工业信息局","肇州县电子商务服务中心","审核员","00511401",1,"综合管理类A类","综合管理类","005114","01","不限","专业技术岗位","专业技术职称初级岗位","不限","大学本科（预备技师（技师）班）及以上","学士学位及以上","本科：管理学；\n研究生：管理学(12)","本科：物流管理与工程类；\n研究生：工程管理(1256)","本科：物流管理、物流工程、采购管理、供应链管理；\n研究生：物流工程与管理(125604)","取得与报考学历相应的学位","笔试、面试","综合管理类（A类）","5年","公益一类","全额拨款","0459-8555227"]
["中共肇州县委宣传部","肇州县网络安全应急指挥中心","综合执法员","00511501",1,"综合管理类A类","综合管理类","005115","01","不限","专业技术岗位","专业技术职称初级岗位","不限","大学本科（预备技师（技师）班）及以上","学士学位及以上","本科：文学\n研究生：文学（05）","本科：中国语言文学类、新闻传播学类；\n研究生：中国语言文学（0501）、新闻传播学（0503）、新闻与传播（0552）","本科：汉语言文学、秘书学、新闻学；\n研究生：中国语言文学（050100）、中国古代文学（050105）、中国现当代文学（050106）、汉语言文学学（050103）、新闻传播学（050300）、新闻学（050301）、新闻与传播（055200）","取得与报考学历相应的学位","笔试、面试","综合管理类（A类）","5年","公益一类","全额拨款","0459-8555227"]
["肇源县卫生健康局","肇源县总医院","临床医生","00520101",1,"医疗卫生类E类","西医临床岗位","005201","01","不限","专业技术岗位","专业技术职称初级岗位","不限","大学本科（预备技师（技师）班）及以上","学士学位及以上","本科：医学；       研究生：医学（10）","本科：临床医学类；    \n研究生：临床医学（1002）、临床医学（1051）","本科：临床医学；         \n 研究生：临床医学（100200）、临床医学（105100）","取得与报考学历相应的学位；具有医师执业证书","笔试、面试","西医临床岗位（E类）",null,"公益二类","差额拨款","0459-8330509"]
["肇源县卫生健康局","肇源县总医院","医学影像科医生","00520102",3,"医疗卫生类E类","医学技术岗位","005201","02","不限","专业技术岗位","专业技术职称初级岗位","不限","大学本科（预备技师（技师）班）及以上","学士学位及以上","本科：医学；       研究生：医学（10）","本科：临床医学类；\n研究生：临床医学（1002）、医学技术（1058）","本科：医学影像学；          \n 研究生：影像医学与核医学（100207）、医学技术（105800）","取得与报考学历相应的学位","笔试、面试","医学技术岗位（E类)",null,"公益二类","差额拨款","0459-8330509"]
["肇源县卫生健康局","肇源县中医院","临床医生","00520201",5,"医疗卫生类E类","西医临床岗位","005202","01","不限","专业技术岗位","专业技术职称初级岗位","不限","大学本科（预备技师（技师）班）及以上","学士学位及以上","本科：医学；       研究生：医学（10）","本科：临床医学类；    \n研究生：临床医学（1002）、临床医学（1051）","本科：临床医学；      \n    研究生：临床医学（100200）、临床医学（105100）","取得与报考学历相应的学位；具有医师执业证书","笔试、面试","西医临床岗位（E类）",null,"公益二类","差额拨款","0459-8330509"]
["肇源县卫生健康局","肇源县中医院","中医医生","00520202",1,"医疗卫生类E类","中医临床岗位","005202","02","不限","专业技术岗位","专业技术职称初级岗位","不限","大学本科（预备技师（技师）班）及以上","学士学位及以上","本科：医学；       研究生：医学（10）","本科：中医学类；      \n研究生：中医学（1005）、中医（1057）","本科：中医学；       \n研究生：中医学（100500）、中医（105700）","取得与报考学历相应的学位；具有医师执业证书","笔试、面试","中医临床岗位（E类）",null,"公益二类","差额拨款","0459-8330509"]
["肇源县卫生健康局","肇源县妇幼保健计划生育服务中心","儿科医生","00520301",1,"医疗卫生类E类","西医临床岗位","005203","01","不限","专业技术岗位","专业技术职称初级岗位","不限","大学本科（预备技师（技师）班）及以上","学士学位及以上","本科：医学；       研究生：医学（10）","本科：临床医学类；           研究生：临床医学（1051）、临床医学（1002）","本科：儿科学；        \n研究生：儿科学（105102）、儿科学（100202）","取得与报考学历相应的学位；具有医师执业证书","笔试、面试","西医临床岗位（E类）",null,"公益一类","全额拨款","0459-8330509"]
["肇源县卫生健康局","肇源县妇幼保健计划生育服务中心","妇产科医生","00520302",1,"医疗卫生类E类","西医临床岗位","005203","02","不限","专业技术岗位","专业技术职称初级岗位","不限","大学本科（预备技师（技师）班）及以上","学士学位及以上","本科：医学；       研究生：医学（10）","本科：临床医学类；    \n研究生：临床医学（1002）、临床医学（1051）","本科：临床医学；       \n   研究生：临床医学（100200）、临床医学（105100）","取得与报考学历相应的学位；具有医师执业证书","笔试、面试","西医临床岗位（E类）",null,"公益一类","全额拨款","0459-8330509"]
["肇源县卫生健康局","肇源县社区卫生服务中心","检验岗","00520401",1,"医疗卫生类E类","医学技术岗位","005204","01","不限","专业技术岗位","专业技术职称初级岗位","不限","大专（高级工班）及以上","不限","专科：医药卫生大类；           本科：医学；        研究生：医学（10）","专科：医学技术类；        \n本科：医学技术类；    \n研究生：医学技术（1058）","专科：医学检验技术；              本科：医学检验技术；      \n研究生：医学技术（105800）","具有卫生专业技术资格证书（初级士及以上）","笔试、面试","医学技术岗位（E类)",null,"公益一类","全额拨款","0459-8330509"]
["肇源县卫生健康局","肇源县新站镇人民医院","临床医生","00520501",1,"医疗卫生类E类","西医临床岗位","005205","01","不限","专业技术岗位","专业技术职称初级岗位","不限","大专（高级工班）及以上","不限","专科：医药卫生大类；           本科：医学；        研究生：医学（10）","专科：临床医学类；        \n本科：临床医学类；\n研究生：临床医学（1002）、临床医学（1051）","专科：临床医学；     \n     本科：临床医学；        \n  研究生：临床医学（100200）、临床医学（105100）",null,"笔试、面试","西医临床岗位（E类）",null,"公益一类","差额拨款","0459-8330509"]
["肇源县卫生健康局","肇源县新站镇人民医院","药剂师","00520502",1,"医疗卫生类E类","药剂岗位","005205","02","不限","专业技术岗位","专业技术职称初级岗位","不限","大专（高级工班）及以上","不限","专科：医药卫生大类；           本科：医学；        研究生：医学（10）","专科：药学类；        本科：药学类；       研究生：药学（1007）、药学（1055）","专科：药学；       \n本科：药学；      \n 研究生：药学（100700）、药学（105500）",null,"笔试、面试","药剂岗位（E类)",null,"公益一类","差额拨款","0459-8330509"]
["肇源县卫生健康局","肇源县新站镇人民医院","护理岗","00520503",1,"医疗卫生类E类","护理岗位","005205","03","不限","专业技术岗位","专业技术职称初级岗位","不限","大专（高级工班）及以上","不限","专科：医药卫生大类；           本科：医学；        研究生：医学（10）","专科：护理类；        本科：护理学类；      \n研究生：护理学（1011）、护理（1054）","专科：护理；        \n本科：护理学；       \n 研究生：护理学（101100）、护理（105400）","具有护士执业证书","笔试、面试","护理岗位（E类)",null,"公益一类","差额拨款","0459-8330509"]
["肇源县林业和草原局","黑龙江肇源沿江湿地自然保护区保护中心","资源股科员","00520601",1,"综合管理类A类","综合管理类","005206","01","不限","管理岗位","管理岗科员岗位","不限","大学本科（预备技师（技师）班）及以上","学士学位及以上","本科：工学；     研究生：工学（08）","本科：环境科学与工程类；\n研究生：环境科学与工程（0830）","本科：环境工程；       \n   研究生：环境工程（083002）","取得与报考学历相应的学位","笔试、面试","综合管理类（A类）",null,"公益一类","全额拨款","0459-8330509"]
["肇源县住房和城乡建设局","肇源县城乡建设事务服务中心","工程建设股科员","00520701",1,"综合管理类A类","综合管理类","005207","01","不限","专业技术岗位","专业技术职称初级岗位","不限","大学本科（预备技师（技师）班）及以上","学士学位及以上","本科：工学；     研究生：工学（08）","本科：土木类；     研究生：土木水利（0859）、土木工程（0814）","本科：土木工程；    \n研究生：土木工程（085901）、土木工程（081400）","取得与报考学历相应的学位","笔试、面试","综合管理类（A类）",null,"公益一类","全额拨款","0459-8330509"]
["肇源县农业农村局","肇源县农业农村事业服务中心","农田项目站科员","00520801",2,"综合管理类A类","综合管理类","005208","01","不限","专业技术岗位","专业技术职称初级岗位","不限","大学本科（预备技师（技师）班）及以上","学士学位及以上","本科：工学；     研究生：工学（08）","本科：土木类、水利类；         研究生：土木水利（0859）、土木工程（0814）、水利工程（0815）","本科：土木工程、水利水电工程；    \n研究生：土木工程（085901）、土木工程（081400）、水利水电工程（081504）","取得与报考学历相应的学位","笔试、面试","综合管理类（A类）",null,"公益一类","全额拨款","0459-8330509"]
["肇源县水务局","肇源县河湖保护中心","工程管理股科员","00520901",1,"综合管理类A类","综合管理类","005209","01","不限","专业技术岗位","专业技术职称初级岗位","不限","大学本科（预备技师（技师）班）及以上","学士学位及以上","本科：工学；     研究生：工学（08）","本科：水利类；      研究生：水利工程（0815）","本科：水利水电工程；   \n     研究生：水利水电工程（081504）","取得与报考学历相应的学位","笔试、面试","综合管理类（A类）",null,"公益一类","全额拨款","0459-8330509"]
["肇源县自然资源局","肇源县不动产登记中心","调查与测绘股科员","00521001",2,"综合管理类A类","综合管理类","005210","01","不限","专业技术岗位","专业技术职称初级岗位","不限","大专（高级工班）及以上","不限","专科：资源环境与安全大类；\n本科：工学；\n研究生：工学（08）","专科：测绘地理信息类；\n本科：测绘类；         研究生：测绘科学与技术（0816）","不限",null,"笔试、面试","综合管理类（A类）",null,"公益一类","全额拨款","0459-8330509"]
["肇源县自然资源局","肇源县自然资源规划整治中心","规划股科员","00521101",1,"综合管理类A类","综合管理类","005211","01","不限","专业技术岗位","专业技术职称初级岗位","不限","大专（高级工班）及以上","不限","专科：土木建筑大类；    \n本科：工学；\n研究生：工学（08）","专科：城乡规划与管理类；\n本科：建筑类；\n研究生：建筑学（0813）、建筑（0851）、城乡规划（0853）","不限",null,"笔试、面试","综合管理类（A类）",null,"公益一类","全额拨款","0459-8330509"]
["肇源县市场监督管理局","肇源县质量技术监督检验检测中心","检验员","00521201",1,"综合管理类A类","综合管理类","005212","01","不限","专业技术岗位","专业技术职称初级岗位","不限","大学本科（预备技师（技师）班）及以上","学士学位及以上","本科：工学；     研究生：工学（08）","本科：材料类；     研究生：材料科学与工程（0805）","不限","取得与报考学历相应的学位","笔试、面试","综合管理类（A类）",null,"公益一类","全额拨款","0459-8330509"]
["肇源县发展和改革局","肇源县大数据发展和服务中心","产业发展规划股科员","00521401",1,"综合管理类A类","综合管理类","005214","01","不限","专业技术岗位","专业技术职称初级岗位","不限","大学本科（预备技师（技师）班）及以上","学士学位及以上","本科：工学；     研究生：工学（08）","本科：计算机类；          研究生：电子信息（0854）","本科：数据科学与大数据技术；    \n研究生：大数据技术与工程（085411）","取得与报考学历相应的学位","笔试、面试","综合管理类（A类）",null,"公益一类","全额拨款","0459-8330509"]
["大庆市农业农村局","大庆市农业技术推广中心","综合岗","00530101",1,"综合管理类A类","综合管理类","005301","01","不限","专业技术岗位","专业技术职称初级岗位","不限","大学本科（预备技师（技师）班）及以上","学士学位及以上","本科：管理学； 研究生：管理学（12）","本科：工商管理类；     \n研究生：工商管理学（1202）、会计（1253）、审计（1257）","本科：会计学、审计学；                   研究生：会计学（120201）、会计（125300）、审计（125700）","取得与报考学历相应的学位","笔试、面试","综合管理类（A类）",null,"公益一类","全额拨款","0459-6186539"]
["大庆市农业农村局","大庆市农业技术推广中心","技术岗","00530102",1,"综合管理类A类","综合管理类","005301","02","不限","专业技术岗位","专业技术职称初级岗位","不限","大学本科（预备技师（技师）班）及以上","学士学位及以上","本科：农学；        研究生： 农学（09）","本科：植物生产类；    \n研究生：农业（0951）、作物学（0901）","本科：农学、种子科学与工程；             研究生：农业（095100）、作物学（090100)、作物栽培学与耕作学（090101）、作物遗传育种（090102）","取得与报考学历相应的学位","笔试、面试","综合管理类（A类）",null,"公益一类","全额拨款","0459-6186539"]
["大庆市农业农村局","大庆市农业农村社会事业服务中心","综合岗","00530201",1,"综合管理类A类","综合管理类","005302","01","不限","专业技术岗位","专业技术职称初级岗位","不限","大学本科（预备技师（技师）班）及以上","学士学位及以上","本科：工学；      研究生：工学（08）","本科：计算机类；              研究生：计算机科学与技术（0812）、软件工程（0835）、电子信息(0854)","本科：计算机科学与技术、软件工程；                 研究生：计算机科学与技术（081200）、计算机软件与理论（081202）、计算机应用技术（081203）；软件工程（083500）；计算机技术（085404）、软件工程（085405）","取得与报考学历相应的学位","笔试、面试","综合管理类（A类）",null,"公益一类","全额拨款","0459-6186539"]
["大庆市农业农村局","大庆市农业农村社会事业服务中心","工程岗","00530202",1,"综合管理类A类","综合管理类","005302","02","不限","专业技术岗位","专业技术职称初级岗位","不限","大学本科（预备技师（技师）班）及以上","学士学位及以上","本科：工学；               研究生：工学(08)","本科：农业工程类；           研究生：农业工程（0828）","本科：农业工程、农业水利工程；              研究生：农业工程（082800）、农业水土工程（082802）","取得与报考学历相应的学位","笔试、面试","综合管理类（A类）",null,"公益一类","全额拨款","0459-6186539"]
["大庆市自然资源局","大庆市自然资源事业发展服务中心","科员","00540101",2,"综合管理类A类","综合管理类","005401","01","不限","专业技术岗位","专业技术职称初级岗位","不限","大学本科（预备技师（技师）班）及以上","学士学位及以上","本  科：法学、工学、管理学；                                                                                                                                                                                                                       研究生：法学（03）、工学（08）、管理学（12）","本  科：法学、建筑类、管理科学与工程类、工商管理类；                            研究生：法学（0301）、城乡规划学（0833）、城乡规划（0853）、管理科学与工程（1201）、工商管理学（1202）、会计（1253）、工程管理（1256）","本  科：法学、城乡规划、城市设计、信息管理与信息系统、工程管理、财务管理、会计学；                                                                                                                    研究生：法学理论（030301）、城乡规划学（083300）、城乡规划（085300）、信息管理与信息系统（1201Z2）、财务管理（1202Z1）、会计学（120201）、会计（125300）、工程管理（125600）","取得与报考学历相应的学位","笔试、面试","综合管理类（A类）","3年","公益一类","全额拨款","0459-8196199  0459-8196066    "]
["大庆市自然资源局","大庆市自然资源事业发展服务中心","科员","00540102",1,"综合管理类A类","综合管理类","005401","02","不限","专业技术岗位","专业技术职称初级岗位","不限","大学本科（预备技师（技师）班）及以上","学士学位及以上","本  科：管理学；                                                                                                                                                  研究生：管理学（12）","本  科：公共管理类、管理科学与工程类；                                                                 研究生：公共管理学（1204）、工程管理（1256）","本  科：土地资源管理、工程管理；                                                                                                                           研究生：土地资源管理（120405）、工程管理（125600）","取得与报考学历相应的学位","笔试、面试","综合管理类（A类）","3年","公益一类","全额拨款","0459-8196199  0459-8196066    "]
["大庆市自然资源局","大庆市不动产登记中心","科员","00540201",3,"综合管理类A类","综合管理类","005402","01","不限","专业技术岗位","专业技术职称初级岗位","不限","大学本科（预备技师（技师）班）及以上","学士学位及以上","本  科：理学、管理学；                                                                   研究生：理学（07）、管理学（12）","本  科：地理科学类、工商管理类、公共管理类；                                          研究生：地理学（0705）、工商管理学（1202）、公共管理学（1204）、会计（1253）                               ","本  科：地理科学、自然地理与资源环境、人文地理与城乡规划、地理信息科学、会计学、财务管理、土地资源管理、自然资源登记与管理；                                         研究生：自然地理学（070501）、人文地理学（070502）、地图学与地理信息系统（070503）、会计学（120201）、财务管理（1202Z1）、土地资源管理（120405）、会计（125300）","取得与报考学历相应的学位","笔试、面试","综合管理类（A类）","3年","公益一类","全额拨款","0459-8196199  0459-8196066    "]
["大庆市自然资源局","大庆市不动产登记中心","科员","00540202",1,"综合管理类A类","综合管理类","005402","02","不限","专业技术岗位","专业技术职称初级岗位","不限","大学本科（预备技师（技师）班）及以上","学士学位及以上","本  科：工学；                                           研究生：工学（08）","本  科：计算机类；                                               研究生：计算机科学与技术（0812）、软件工程（0835）、软件工程（0854）、网络空间安全（0839）、电子信息（0854）","本  科：计算机科学与技术、软件工程、网络工程、信息安全；                                                                      研究生：计算机科学与技术（081200）、软件工程（083500）、软件工程（085405）、网络空间安全（083900）、网络与信息安全（085412）","取得与报考学历相应的学位","笔试、面试","综合管理类（A类）","3年","公益一类","全额拨款","0459-8196199  0459-8196066    "]
["大庆市自然资源局","萨尔图分局服务中心","科员","00540301",1,"综合管理类A类","综合管理类","005403","01","不限","专业技术岗位","专业技术职称初级岗位","不限","大学本科（预备技师（技师）班）及以上","学士学位及以上","不限","不限","不限","取得与报考学历相应的学位","笔试、面试","综合管理类（A类）","3年","公益一类","全额拨款","0459-8196199  0459-8196066    "]
["大庆市自然资源局","萨尔图分局服务中心","科员","00540302",1,"综合管理类A类","综合管理类","005403","02","不限","专业技术岗位","专业技术职称初级岗位","不限","大学本科（预备技师（技师）班）及以上","学士学位及以上","本  科：经济学、管理学、艺术学；                                                    研究生：经济学（02）、农学（09）、管理学（12）、艺术学（13）","本  科：金融学类、工商管理类、公共管理类、设计学类；                                                                                                 研究生：应用经济学（0202）、金融（0251）、农业类（0951）、工商管理学（1202）、公共管理学（1204）、设计学（1370）、设计（1357）","本  科：金融学、会计学、财务管理、土地资源管理、环境设计；                                                                        研究生：金融学（020204）、金融（025100）、农业工程与信息技术（095136）、财务管理（1202Z1）、会计学（120201）、会计（125300）、土地资源管理（120405）、设计学（137000）、设计（135700）","取得与报考学历相应的学位","笔试、面试","综合管理类（A类）","3年","公益一类","全额拨款","0459-8196199  0459-8196066    "]
["大庆市自然资源局","让胡路分局服务中心","科员","00540401",1,"综合管理类A类","综合管理类","005404","01","不限","专业技术岗位","专业技术职称初级岗位","不限","大学本科（预备技师（技师）班）及以上","学士学位及以上","本  科：理学、工学；                                                研究生：理学（07）、工学（08）","本  科：地理科学类、建筑类、测绘类；                                           研究生：地理学（0705）、建筑学（0813）、城乡规划学（0833）、城乡规划（0853）、测绘科学与技术（0816）","不限","取得与报考学历相应的学位","笔试、面试","综合管理类（A类）","3年","公益一类","全额拨款","0459-8196199  0459-8196066    "]
["大庆市自然资源局","龙凤分局服务中心","科员","00540501",1,"综合管理类A类","综合管理类","005405","01","不限","专业技术岗位","专业技术职称初级岗位","不限","大学本科（预备技师（技师）班）及以上","学士学位及以上","本  科：理学、工学；                                                          研究生：理学（07）、工学（08）","本  科：地理科学类、建筑类、测绘类；                                           研究生：地理学（0705）、建筑学（0813）、城乡规划学（0833）、城乡规划（0853）、测绘科学与技术（0816）","不限","取得与报考学历相应的学位","笔试、面试","综合管理类（A类）","3年","公益一类","全额拨款","0459-8196199  0459-8196066    "]
["大庆市自然资源局","红岗分局服务中心","科员","00540601",1,"综合管理类A类","综合管理类","005406","01","不限","专业技术岗位","专业技术职称初级岗位","不限","大学本科（预备技师（技师）班）及以上","学士学位及以上","本  科：管理学；                    研究生：管理学（12）","本  科：工商管理类；                     研究生：工商管理学（1202）、会计（1253）","本  科：财务管理、会计学；                                                                                研究生：财务管理（1202Z1）、会计学（120201）、会计（125300）","取得与报考学历相应的学位","笔试、面试","综合管理类（A类）","3年","公益一类","全额拨款","0459-8196199  0459-8196066    "]
["萨尔图区卫生健康局","萨尔图区卫生健康服务中心","卫生管理岗","00550101",1,"医疗卫生类E类","公共卫生管理岗位","005501","01","不限","专业技术岗位","专业技术职称初级岗位","不限","大学本科（预备技师（技师）班）及以上","不限","本科：医学；\n研究生：医学（10）","本科：公共卫生与预防医学类；\n研究生：公共卫生与预防医学（1004）、公共卫生（1053）","不限",null,"笔试、面试","公共卫生管理岗位（E类)","5年","公益一类","全额拨款","0459-4681788"]
["萨尔图区卫生健康局","大庆市萨尔图区人民医院","口腔医生","00550201",1,"医疗卫生类E类","西医临床岗位","005502","01","不限","专业技术岗位","专业技术职称初级岗位","不限","大学本科（预备技师（技师）班）及以上","不限","本科：医学；\n研究生：医学（10）","本科：口腔医学类；\n研究生：口腔医学（1003）、口腔医学（1052）","不限","具有医师执业证书","笔试、面试","西医临床岗位（E类）","5年","公益二类","差额拨款"," 0459-4325778"]
["萨尔图区卫生健康局","大庆市萨尔图区人民医院","临床医生","00550202",1,"医疗卫生类E类","西医临床岗位","005502","02","不限","专业技术岗位","专业技术职称初级岗位","不限","大学本科（预备技师（技师）班）及以上","不限","\n本科：医学；\n研究生：医学（10）","\n本科：临床医学类；\n研究生：临床医学（1002）、临床医学（1051）","不限","具有医师执业证书","笔试、面试","西医临床岗位（E类）","5年","公益二类","差额拨款"," 0459-4325778"]
["萨尔图区卫生健康局","萨尔图区妇幼保健计划生育服务中心","卫生管理岗","00550301",1,"医疗卫生类E类","护理岗位","005503","01","不限","专业技术岗位","专业技术职称初级岗位","不限","大学本科（预备技师（技师）班）及以上","不限","本科：医学；\n研究生：医学(10)","本科：护理学类；\n研究生:护理学(1011)、护理(1054)","不限","具有护士执业证书","笔试、面试","护理岗位（E类)","5年","公益一类","全额拨款","0459-6279263"]
["大庆市龙凤区卫生健康局","龙凤区兴化街道社区卫生服务中心","医生岗","00570101",4,"医疗卫生类E类","西医临床岗位","005701","01","不限","专业技术岗位","专业技术职称初级岗位","不限","大学本科（预备技师（技师）班）及以上","不限","本科：医学；\n研究生：医学（10）","本科：临床医学类；\n研究生：临床医学（1002）、临床医学（1051）","本科：临床医学；\n研究生：临床医学（100200）、临床医学（105100）","具有医师执业证书","笔试、面试","西医临床岗位（E类）","5年","公益一类","全额拨款","0459-6230085"]
["大庆市龙凤区卫生健康局","龙凤区兴化街道社区卫生服务中心","护理岗","00570102",3,"医疗卫生类E类","护理岗位","005701","02","不限","专业技术岗位","专业技术职称初级岗位","不限","大学本科（预备技师（技师）班）及以上","不限","本科：医学；\n研究生：医学（10）","\n本科：护理学\n研究生：护理学（1011）、护理（1054）","\n\n本科：护理学\n研究生：护理学（101100）、护理（105400）","具有护士资格证","笔试、面试","护理岗位（E类)","5年","公益一类","全额拨款","0459-6230085"]
["大庆市龙凤区卫生健康局","龙凤区兴化街道社区卫生服务中心","放射岗","00570103",1,"医疗卫生类E类","医学技术岗位","005701","03","不限","专业技术岗位","专业技术职称初级岗位","不限","大学本科（预备技师（技师）班）及以上","不限","本科：医学；\n研究生：医学（10）","本科：医学影像学\n研究生：临床医学（1002）","本科：医学影像学\n研究生：影像医学与核医学（100207）","具有医师执业证书","笔试、面试","医学技术岗位（E类)","5年","公益一类","全额拨款","0459-6230085"]
["大庆市龙凤区卫生健康局","龙凤区兴化街道社区卫生服务中心","公共卫生管理岗位","00570104",1,"医疗卫生类E类","公共卫生管理岗位","005701","04","不限","专业技术岗位","专业技术职称初级岗位","不限","大学本科（预备技师（技师）班）及以上","不限","本科：医学；\n研究生：医学（10）","本科：公共卫生与预防医学类、临床医学类；\n研究生：公共卫生与预防医学（1004）、公共卫生（1053）、临床医学（1002）、临床医学（1051）","本科：预防医学、临床医学；\n研究生：公共卫生与预防医学（100400）、公共卫生（105300）、临床医学（100200）、临床医学（105100）","不限","笔试、面试","公共卫生管理岗位（E类)","5年","公益一类","全额拨款","0459-6230085"]
["大庆市龙凤区卫生健康局","龙凤区妇幼保健计划生育服务中心","医生岗","00570201",1,"医疗卫生类E类","西医临床岗位","005702","01","不限","专业技术岗位","专业技术职称初级岗位","不限","大学本科（预备技师（技师）班）及以上","不限","本科：医学；\n研究生：医学（10）","本科：临床医学类；\n研究生：临床医学（1002）、临床医学（1051）","本科：临床医学；\n研究生：临床医学（100200）、临床医学（105100）","不限","笔试、面试","西医临床岗位（E类）","5年","公益一类","全额拨款","0459-6230085"]
["大庆市龙凤区卫生健康局","龙凤区卧里屯街道社区卫生服务中心","西医临床岗位","00570301",2,"医疗卫生类E类","西医临床岗位","005703","01","不限","专业技术岗位","专业技术职称初级岗位","不限","大学本科（预备技师（技师）班）及以上","不限","本科：医学；\n研究生：医学（10）","本科：临床医学类；\n研究生：临床医学（1002）、临床医学（1051）","本科：临床医学\n研究生：临床医学（100200）、临床医学（105100）、全科医学（105109）","具有医师执业证书","笔试、面试","西医临床岗位（E类）","5年","公益一类","全额拨款","0459-6230085"]
["大庆市龙凤区卫生健康局","龙凤区卧里屯街道社区卫生服务中心","B超岗","00570302",1,"医疗卫生类E类","医学技术岗位","005703","02","不限","专业技术岗位","专业技术职称初级岗位","不限","大学本科（预备技师（技师）班）及以上","不限","本科：医学；\n研究生：医学（10）","本科：医学影像学\n研究生：临床医学（1002）","\n本科：医学影像学\n研究生：影像医学与核医学（100207）","具有医师执业证书","笔试、面试","医学技术岗位（E类)","5年","公益一类","全额拨款","0459-6230085"]
["大庆市龙凤区卫生健康局","龙凤区龙政街道社区卫生服务中心","西医临床岗位","00570401",2,"医疗卫生类E类","西医临床岗位","005704","01","不限","专业技术岗位","专业技术职称初级岗位","不限","大学本科（预备技师（技师）班）及以上","不限","本科：医学；\n研究生：医学（10）","本科：临床医学类；\n研究生：临床医学（1002）、临床医学（1051）","本科：临床医学\n研究生：临床医学（100200）、临床医学（105100）、全科医学（105109）","具有医师执业证书","笔试、面试","西医临床岗位（E类）","5年","公益一类","全额拨款","0459-6230085"]
["大庆市龙凤区卫生健康局","龙凤区龙政街道社区卫生服务中心","中医岗","00570402",3,"医疗卫生类E类","中医临床岗位","005704","02","不限","专业技术岗位","专业技术职称初级岗位","不限","大学本科（预备技师（技师）班）及以上","不限","本科：医学；\n研究生：医学（10）","本科：中医学类；      \n研究生：中医学（1005）、中医（1057）","本科：中医学；       \n研究生：中医学（100500）、中医（105700）","具有医师执业证书","笔试、面试","中医临床岗位（E类）","5年","公益一类","全额拨款","0459-6230085"]
["大庆市龙凤区卫生健康局","龙凤区龙政街道社区卫生服务中心","公共卫生管理岗位","00570403",1,"医疗卫生类E类","公共卫生管理岗位","005704","03","不限","专业技术岗位","专业技术职称初级岗位","不限","大学本科（预备技师（技师）班）及以上","不限","本科：医学；\n研究生：医学（10）","本科：公共卫生与预防医学类、临床医学类；\n研究生：公共卫生与预防医学（1004）、公共卫生（1053）、临床医学（1002）、临床医学（1051）","本科：预防医学、临床医学；\n研究生：公共卫生与预防医学（100400）、公共卫生（105300）、临床医学（100200）、临床医学（105100）","不限","笔试、面试","公共卫生管理岗位（E类)","5年","公益一类","全额拨款","0459-6230085"]
["大庆市龙凤区卫生健康局","大庆市龙凤区人民医院","外科医生岗","00570501",1,"医疗卫生类E类","西医临床岗位","005705","01","不限","专业技术岗位","专业技术职称初级岗位","不限","大学本科（预备技师（技师）班）及以上","不限","本科：医学；\n研究生：医学（10）","本科：临床医学类；\n研究生：临床医学（1002）、临床医学（1051）","本科：临床医学\n研究生：临床医学（100200）、临床医学（105100）、外科学（100210）、外科学（105111）","具有医师执业证书","笔试、面试","西医临床岗位（E类）","5年","公益二类","差额拨款","0459-6230085"]
["大庆市龙凤区卫生健康局","大庆市龙凤区人民医院","儿科医生岗","00570502",1,"医疗卫生类E类","西医临床岗位","005705","02","不限","专业技术岗位","专业技术职称初级岗位","不限","大学本科（预备技师（技师）班）及以上","不限","本科：医学；\n研究生：医学（10）","本科：临床医学类；\n研究生：临床医学（1002）、临床医学（1051）","本科：临床医学、儿科学\n研究生：临床医学（100200）、临床医学（105100）、儿科学（100202）、儿科学（105102）","具有医师执业证书","笔试、面试","西医临床岗位（E类）","5年","公益二类","差额拨款","0459-6230085"]
["大庆市龙凤区卫生健康局","大庆市龙凤区人民医院","财务岗","00570503",1,"综合管理类A类","综合管理类","005705","03","不限","专业技术岗位","专业技术职称初级岗位","不限","大学本科（预备技师（技师）班）及以上","不限","本科：管理学；\n研究生：管理学（12）","本科：工商管理类；\n研究生：工商管理学(1202)、会计(1253）","本科：会计学；\n研究生：会计学(120201)、会计(125300)",null,"笔试、面试","综合管理类（A类）","5年","公益二类","差额拨款","0459-6230085"]
["大庆市龙凤区卫生健康局","大庆市龙凤区人民医院","B超岗","00570504",1,"医疗卫生类E类","医学技术岗位","005705","04","不限","专业技术岗位","专业技术职称初级岗位","不限","大学本科（预备技师（技师）班）及以上","不限","本科：医学；\n研究生：医学（10）","本科：医学影像学\n研究生：临床医学（1002）","本科：医学影像学\n研究生：影像医学与核医学（100207）","具有医师执业证书","笔试、面试","医学技术岗位（E类)","5年","公益二类","差额拨款","0459-6230085"]
["大庆市龙凤区卫生健康局","大庆市龙凤区人民医院","医学检验岗","00570505",1,"医疗卫生类E类","医学技术岗位","005705","05","不限","专业技术岗位","专业技术职称初级岗位","不限","大学本科（预备技师（技师）班）及以上","不限","本科：医学；\n研究生：医学（10）","\n本科：医学技术类；\n研究生：临床医学（1002）","\n本科：医学检验技术；      \n研究生：临床检验诊断（100208）",null,"笔试、面试","医学技术岗位（E类)","5年","公益二类","差额拨款","0459-6230085"]
["大庆市龙凤区卫生健康局","大庆市龙凤区人民医院","医学影像岗","00570506",1,"医疗卫生类E类","医学技术岗位","005705","06","不限","专业技术岗位","专业技术职称初级岗位","不限","大学本科（预备技师（技师）班）及以上","不限","本科：医学；\n研究生：医学（10）","\n本科：临床医学类、医学技术类；       \n研究生：临床医学（1002）","\n本科：医学影像学、医学影像技术；     \n 研究生：影像医学与核医学（100207）","影像学资格证","笔试、面试","医学技术岗位（E类)","5年","公益二类","差额拨款","0459-6230085"]
["大庆市龙凤区卫生健康局","大庆市龙凤区人民医院","口腔科医生岗","00570507",1,"医疗卫生类E类","西医临床岗位","005705","07","不限","专业技术岗位","专业技术职称初级岗位","不限","大学本科（预备技师（技师）班）及以上","不限","本科：医学；\n研究生：医学（10）","本科：口腔医学类\n研究生：口腔医学（1003）、口腔医学（1052）","本科：口腔医学\n研究生：口腔医学（100300）、口腔临床医学（100302）、口腔医学（105200）","具有医师执业证书","笔试、面试","西医临床岗位（E类）","5年","公益二类","差额拨款","0459-6230085"]
["大庆市大同区文化体育和旅游局","大同区文化馆","科员",{"$f":"H73&I73","v":"00590101"},1,"综合管理类A类","综合管理类","005901","01","不限","专业技术岗位","专业技术职称初级岗位","不限","大学本科（预备技师（技师）班）及以上","学士学位及以上","本科：管理学；\n研究生:管理学(12)","本科：旅游管理类；\n研究生：工商管理学(1202)","本科：旅游管理；\n研究生：旅游管理(120203)","取得与报考学历相应的学位","笔试、面试","综合管理类（A类）",null,"公益一类","全额拨款","0459-6165929"]
["大庆市大同区营商环境建设监督局","大同区政务服务中心","科员","00590201",1,"综合管理类A类","综合管理类","005902","01","不限","专业技术岗位","专业技术职称初级岗位","不限","大学本科（预备技师（技师）班）及以上","学士学位及以上","本科：文学；\n研究生:文学（05）","本科：中国语言文学类；\n研究生：中国语言文学（0501）","本科：汉语言文学、秘书学；\n研究生：中国语言文学（050100）","取得与报考学历相应的学位","笔试、面试","综合管理类（A类）",null,"公益一类","全额拨款","0459-6165929"]
["大庆市大同区卫生健康局","大同区疾病预防控制中心","科员","00590301",1,"医疗卫生类E类","医学技术岗位","005903","01","不限","专业技术岗位","专业技术职称初级岗位","不限","大专（高级工班）及以上","不限","专科：医药卫生大类\n本科：医学\n研究生：医学（10）","专科：医学技术类；  \n本科：医学技术类；\n研究生：医学技术（1058）","专科：医学检验技术；           \n本科：医学检验技术、医学实验技术；\n研究生：医学技术（105800）",null,"笔试、面试","医学技术岗位（E类)",null,"公益一类","全额拨款","0459-6165929"]
["大庆市大同区卫生健康局","大同区疾病预防控制中心","科员","00590302",2,"医疗卫生类E类","西医临床岗位","005903","02","不限","专业技术岗位","专业技术职称初级岗位","不限","大专（高级工班）及以上","不限","专科：医药卫生大类\n本科：医学\n研究生：医学（10）","专科：临床医学类；  \n本科：基础医学类、临床医学类；\n研究生：基础医学（1001）、临床医学（1002）、临床医学（1051）","专科：临床医学；        本科：基础医学、临床医学；\n研究生：基础医学（100100）、临床医学（100200）、临床医学（105100）",null,"笔试、面试","西医临床岗位（E类）",null,"公益一类","全额拨款","0459-6165929"]
["大庆市大同区卫生健康局","大同区疾病预防控制中心","科员","00590303",2,"医疗卫生类E类","公共卫生管理岗位","005903","03","不限","专业技术岗位","专业技术职称初级岗位","不限","大专（高级工班）及以上","不限","专科：医药卫生大类\n本科：医学\n研究生：医学（10）","专科：公共卫生与卫生管理类；  \n本科：公共卫生与预防医学类；\n研究生：公共卫生与预防医学（1004）公共卫生（1053）","专科：预防医学；        本科：预防医学、食品卫生与营养学、卫生监督；\n研究生：公共卫生与预防医学（100400）、公共卫生（105300）",null,"笔试、面试","公共卫生管理岗位（E类)",null,"公益一类","全额拨款","0459-6165929"]
["大庆市大同区卫生健康局","大同区新华街道社区卫生服务中心","科员","00590401",4,"医疗卫生类E类","西医临床岗位","005904","01","不限","专业技术岗位","专业技术职称初级岗位","不限","大专（高级工班）及以上","不限","专科：医药卫生大类\n本科：医学\n研究生：医学（10）","专科：临床医学类；  本科：临床医学类；\n研究生：临床医学（1002）、临床医学（1051）","专科：临床医学；          本科：临床医学；\n研究生：临床医学（100200）、临床医学（105100）",null,"笔试、面试","西医临床岗位（E类）",null,"公益一类","全额拨款","0459-6165929"]
["大庆市大同区卫生健康局","大同区新华街道社区卫生服务中心","科员","00590402",2,"医疗卫生类E类","中医临床岗位","005904","02","不限","专业技术岗位","专业技术职称初级岗位","不限","大专（高级工班）及以上","不限","专科：医药卫生大类\n本科：医学\n研究生：医学（10）","专科：中医药类；    本科：中医学类、中西医结合类；\n研究生：中医学（1005）、中西医结合（1006）、中医（1057）","专科：中医学；  本科：中医学、中西医临床医学；\n研究生：中医学（100500）、中西医结合临床（100602）中西医结合临床（105709）",null,"笔试、面试","中医临床岗位（E类）",null,"公益一类","全额拨款","0459-6165929"]
["大庆市大同区卫生健康局","大同区新华街道社区卫生服务中心","科员","00590403",2,"医疗卫生类E类","医学技术岗位","005904","03","不限","专业技术岗位","专业技术职称初级岗位","不限","大专（高级工班）及以上","不限","专科：医药卫生大类\n本科：医学\n研究生：医学（10）","专科：临床医学类、医学技术类；\n本科：口腔医学类；\n研究生：口腔医学（1003）、口腔医学（1052）","专科：口腔医学、口腔医学技术；             本科：口腔医学；\n研究生：口腔医学（100300）、口腔基础医学（100301）、口腔临床医学（100302）、口腔医学（105200）",null,"笔试、面试","医学技术岗位（E类)",null,"公益一类","全额拨款","0459-6165929"]
["大庆市大同区卫生健康局","大同区新华街道社区卫生服务中心","科员","00590404",2,"医疗卫生类E类","医学技术岗位","005904","04","不限","专业技术岗位","专业技术职称初级岗位","不限","大专（高级工班）及以上","不限","专科：医药卫生大类\n本科：医学\n研究生：医学（10）","专科：医学技术类；  \n本科：医学技术类；\n研究生：医学技术（1058）","专科：医学检验技术；         \n  本科：医学检验技术；\n研究生：医学技术（105800）",null,"笔试、面试","医学技术岗位（E类)",null,"公益一类","全额拨款","0459-6165929"]
["大庆市大同区水务局","大同区水利指导站","科员","00590501",1,"综合管理类A类","综合管理类","005905","01","不限","专业技术岗位","专业技术职称初级岗位","不限","大学本科（预备技师（技师）班）及以上","学士学位及以上","本科：工学；\n研究生:工学（08）","本科：水利类、农业工程类；\n研究生：水利工程（0815）、农业工程（0828）","本科：水利水电工程、水文与水资源工程、水务工程、水利科学与工程、农业水利工程；\n研究生：水利工程（081500）、水利水电工程（081504）农业水土工程（082802）、水文学及水资源（081501）","取得与报考学历相应的学位","笔试、面试","综合管理类（A类）",null,"公益一类","全额拨款","0459-6165929"]
["大庆市大同区财政局","大同区财政综合服务中心","科员","00590601",1,"综合管理类A类","综合管理类","005906","01","不限","专业技术岗位","专业技术职称初级岗位","不限","大学本科（预备技师（技师）班）及以上","学士学位及以上","不限","不限","不限","取得与报考学历相应的学位","笔试、面试","综合管理类（A类）",null,"公益一类","全额拨款","0459-6165929"]
["大庆市大同区农业农村局","大同区农村经济服务站","科员","00590701",1,"综合管理类A类","综合管理类","005907","01","不限","专业技术岗位","专业技术职称初级岗位","不限","大学本科（预备技师（技师）班）及以上","学士学位及以上","本科：经济学、管理学；\n研究生：经济学(02)、管理学(12)","本科：经济学类、财政学类、金融学类、工商管理类；\n研究生：应用经济学(0202)、金融(0251)、工商管理学(1202)、会计(1253)","本科：经济学、财政学、金融学、会计学、财务管理；\n研究生：应用经济学(020200)、财政学(020203)、金融学(020204)、金融(025100)、会计学(120201)、会计(125300)、财务管理(1202Z1)","取得与报考学历相应的学位","笔试、面试","综合管理类（A类）",null,"公益一类","全额拨款","0459-6165929"]
["大庆市大同区农业农村局","大同区农村社会事业服务中心","科员","00590801",1,"综合管理类A类","综合管理类","005908","01","不限","专业技术岗位","专业技术职称初级岗位","不限","大学本科（预备技师（技师）班）及以上","学士学位及以上","本科：农学；\n研究生:农学（09）","本科：植物生产类；\n研究生：园艺学（0902）、植物保护（0904）、农业（0951）","本科：农学、园艺、植物保护；\n研究生：园艺学（090200）、植物保护（090400）、农业（095100）","取得与报考学历相应的学位","笔试、面试","综合管理类（A类）",null,"公益一类","全额拨款","0459-6165929"]
["大庆市大同区农业农村局","大同区乡村产业发展服务中心","科员","00590901",1,"综合管理类A类","综合管理类","005909","01","不限","专业技术岗位","专业技术职称初级岗位","不限","大学本科（预备技师（技师）班）及以上","学士学位及以上","本科：工学；\n研究生:工学（08）、农学（09）","本科：食品科学与工程类；\n研究生：食品科学与工程（0832）、食品科学与工程（0972）","本科：粮食工程、食品科学与工程；\n研究生：食品科学与工程（083200）、粮食、油脂及植物蛋白工程（083202）、食品科学与工程（097200）、粮食、油脂及植物蛋白工程（097202）","取得与报考学历相应的学位","笔试、面试","综合管理类（A类）",null,"公益一类","全额拨款","0459-6165929"]
["大庆市大同区住房和城乡建设局","大同区房产和建筑市场综合服务中心","科员","00591001",1,"综合管理类A类","综合管理类","005910","01","不限","专业技术岗位","专业技术职称初级岗位","不限","大学本科（预备技师（技师）班）及以上","学士学位及以上","本科：工学；\n研究生:工学（08）","本科：土木类；\n研究生：土木工程（0814）、土木水利（0859）","本科：土木工程；\n研究生：土木工程（081400）、土木工程（085901）","取得与报考学历相应的学位","笔试、面试","综合管理类（A类）",null,"公益一类","全额拨款","0459-6165929"]
["大庆市大同区人力资源和社会保障局","大同区城乡居民社会养老保险事业服务中心","科员","00591101",2,"综合管理类A类","综合管理类","005911","01","不限","专业技术岗位","专业技术职称初级岗位","不限","大学本科（预备技师（技师）班）及以上","学士学位及以上","本科：管理学；\n研究生：管理学(12)","本科：工商管理类；\n研究生：工商管理学(1202)、会计(1253)","本科：会计学、财务管理；\n研究生：会计学(120201)、会计(125300)、财务管理(1202Z1)","取得与报考学历相应的学位","笔试、面试","综合管理类（A类）",null,"公益一类","全额拨款","0459-6165929"]
["大庆市大同区红旗林场","大庆市大同区红旗林场","科员","00591201",2,"综合管理类A类","综合管理类","005912","01","不限","专业技术岗位","专业技术职称初级岗位","不限","大学本科（预备技师（技师）班）及以上","学士学位及以上","本科：管理学、工学；\n研究生:工学（08）","本科：管理科学与工程类、计算机类；\n研究生：电子信息（0854）","本科：大数据管理与应用、数据科学与大数据技术；\n研究生：大数据技术与工程（085411）","取得与报考学历相应的学位","笔试、面试","综合管理类（A类）",null,"公益一类","全额拨款","0459-6165929"]
["大庆市大同区红旗林场","大庆市大同区红旗林场","科员","00591202",1,"综合管理类A类","综合管理类","005912","02","不限","专业技术岗位","专业技术职称初级岗位","不限","大学本科（预备技师（技师）班）及以上","学士学位及以上","本科：管理学；\n研究生：管理学(12)","本科：工商管理类；\n研究生：工商管理学(1202)、会计(1253)","本科：会计学、财务管理；\n研究生：会计学(120201)、会计(125300)、财务管理(1202Z1)","取得与报考学历相应的学位","笔试、面试","综合管理类（A类）",null,"公益一类","全额拨款","0459-6165929"]
["大庆市大同区红旗林场","大庆市大同区红旗林场","科员","00591203",1,"综合管理类A类","综合管理类","005912","03","不限","专业技术岗位","专业技术职称初级岗位","不限","大学本科（预备技师（技师）班）及以上","学士学位及以上","本科：工学；\n研究生:理学（07）、工学（08）\n","本科：计算机类；\n研究生：计算机科学与技术（0775）、计算机科学与技术（0812）、软件工程（0835）、电子信息（0854）","本科：计算机科学与技术；软件工程、网络工程；         \n研究生：计算机科学与技术（077500）、计算机科学与技术（081200）、软件工程（083500）、计算机技术（085404）、软件工程（085405）","取得与报考学历相应的学位","笔试、面试","综合管理类（A类）",null,"公益一类","全额拨款","0459-6165929"]
["大庆市大同区油田服务中心","大庆市大同区油田服务中心","科员","00591301",1,"综合管理类A类","综合管理类","005913","01","不限","专业技术岗位","专业技术职称初级岗位","不限","大学本科（预备技师（技师）班）及以上","学士学位及以上","本科：管理学；\n研究生：管理学(12)","本科：工商管理类；\n研究生：工商管理学(1202)、会计(1253)","本科：会计学、财务管理；\n研究生：会计学(120201)、会计(125300)、财务管理(1202Z1)","取得与报考学历相应的学位","笔试、面试","综合管理类（A类）",null,"公益一类","全额拨款","0459-6165929"]
["大庆市大同区太阳升镇人民政府","太阳升镇经济发展服务中心","科员","00591401",1,"综合管理类A类","综合管理类","005914","01","不限","专业技术岗位","专业技术职称初级岗位","不限","大学本科（预备技师（技师）班）及以上","学士学位及以上","本科：管理学；\n研究生：管理学(12)","本科：工商管理类；\n研究生：工商管理学(1202)、会计(1253)","本科：会计学、财务管理；\n研究生：会计学(120201)、会计(125300)、财务管理(1202Z1)","取得与报考学历相应的学位","笔试、面试","综合管理类（A类）",null,"公益一类","全额拨款","0459-6165929"]
["大庆市大同区太阳升镇人民政府","太阳升镇综合文化站","科员","00591501",1,"综合管理类A类","综合管理类","005915","01","不限","专业技术岗位","专业技术职称初级岗位","不限","大学本科（预备技师（技师）班）及以上","学士学位及以上","本科：艺术学；\n研究生:艺术学（13）","本科：戏剧与影视学类；\n研究生：戏剧与影视（1354）","本科：动画；\n研究生：戏剧与影视（135400）","取得与报考学历相应的学位","笔试、面试","综合管理类（A类）",null,"公益一类","全额拨款","0459-6165929"]
["大庆市大同区双榆树乡人民政府","双榆树乡综合文化站","科员","00591601",1,"综合管理类A类","综合管理类","005916","01","不限","专业技术岗位","专业技术职称初级岗位","不限","大学本科（预备技师（技师）班）及以上","学士学位及以上","本科：艺术学；\n研究生:艺术学（13）","本科：设计学类；\n研究生：设计（1357）","本科：环境设计；\n研究生：设计（135700）","取得与报考学历相应的学位","笔试、面试","综合管理类（A类）",null,"公益一类","全额拨款","0459-6165929"]
["大庆市大同区双榆树乡人民政府","双榆树乡综合便民服务中心","科员","00591701",1,"综合管理类A类","综合管理类","005917","01","不限","专业技术岗位","专业技术职称初级岗位","不限","大学本科（预备技师（技师）班）及以上","学士学位及以上","本科：管理学；\n研究生：管理学(12)","本科：工商管理类；\n研究生：工商管理学(1202)、会计(1253)","本科：会计学、财务管理；\n研究生：会计学(120201)、会计(125300)、财务管理(1202Z1)","取得与报考学历相应的学位","笔试、面试","综合管理类（A类）",null,"公益一类","全额拨款","0459-6165929"]
["大庆市大同区教育局","大同区老山头乡明德小学","小学音乐教师","00591801",1,"中小学教师类D类","小学教师岗位","005918","01","不限","专业技术岗位","专业技术职称初级岗位","不限","大学本科（预备技师（技师）班）及以上","学士学位及以上","本科：教育学、艺术学；\n研究生:教育学（04）、艺术学（13）","本科：教育学类、音乐与舞蹈学类；\n研究生：教育（0451）、艺术学（1301）、音乐（1352）","本科：艺术教育、音乐学、音乐教育、音乐表演\n研究生：学科教学（音乐）（045111）、艺术学（130101）、音乐（135200）","取得与报考学历相应的学位、取得与报考岗位相应的教师资格证书","笔试、面试","小学教师岗位（D类）",null,"公益一类","全额拨款","0459-6165929"]
["大庆市大同区教育局","大同区双榆树乡中心小学","小学数学教师","00591901",1,"中小学教师类D类","小学教师岗位","005919","01","不限","专业技术岗位","专业技术职称初级岗位","不限","大学本科（预备技师（技师）班）及以上","学士学位及以上","本科：理学；\n研究生:理学（07）、教育学（04）","本科：数学类；\n研究生：教育（0451）、数学（0701）","本科：数学与应用数学；\n研究生：学科教学（数学）（045104）、数学（070100）、基础数学（070101）、计算数学（070102）、应用数学（070104）","取得与报考学历相应的学位、取得与报考岗位相应的教师资格证书","笔试、面试","小学教师岗位（D类）",null,"公益一类","全额拨款","0459-6165929"]
["大庆市大同区教育局","大同区双榆树乡中心小学","小学英语教师","00591902",1,"中小学教师类D类","小学教师岗位","005919","02","不限","专业技术岗位","专业技术职称初级岗位","不限","大学本科（预备技师（技师）班）及以上","学士学位及以上","\n本科：文学\n研究生：教育学(04)","\n本科：外国语言文学类\n研究生：教育(0451)","\n本科：英语\n研究生：学科教学（英语）（045108）","取得与报考学历相应的学位、取得与报考岗位相应的教师资格证书","笔试、面试","小学教师岗位（D类）",null,"公益一类","全额拨款","0459-6165929"]
["大庆市大同区教育局","大同区第二小学","小学心理健康教师","00592001",1,"中小学教师类D类","小学教师岗位","005920","01","不限","专业技术岗位","专业技术职称初级岗位","不限","大学本科（预备技师（技师）班）及以上","学士学位及以上","本科：理学；\n研究生:理学（07）、教育学（04）","本科：心理学类；\n研究生：心理学（0402）、心理学（0771）、\n教育（0451）、应用心理（0454）","本科：心理学、应用心理学；\n研究生：心理学（040200）、基础心理学（040201）、发展与教育心理学（040202）、应用心理学（040203）、心理学（077100）、基础心理学（077101）、发展与教育心理学（077102）、应用心理学（077103）、心理健康教育（045116）、应用心理（045400）","取得与报考学历相应的学位、取得与报考岗位相应的教师资格证书","笔试、面试","小学教师岗位（D类）",null,"公益一类","全额拨款","0459-6165929"]
["大庆市大同区教育局","大同区老山头乡中学","小学数学教师","00592101",1,"中小学教师类D类","小学教师岗位","005921","01","不限","专业技术岗位","专业技术职称初级岗位","不限","大学本科（预备技师（技师）班）及以上","学士学位及以上","本科：理学；\n研究生:理学（07）、教育学（04）","本科：数学类；\n研究生：教育（0451）、数学（0701）","本科：数学与应用数学；\n研究生：学科教学（数学）（045104）、数学（070100）、基础数学（070101）、计算数学（070102）、应用数学（070104）","取得与报考学历相应的学位、取得与报考岗位相应的教师资格证书","笔试、面试","小学教师岗位（D类）",null,"公益一类","全额拨款","0459-6165929"]
["大庆市大同区教育局","大同区老山头乡中学","小学音乐教师","00592102",1,"中小学教师类D类","小学教师岗位","005921","02","不限","专业技术岗位","专业技术职称初级岗位","不限","大学本科（预备技师（技师）班）及以上","学士学位及以上","本科：教育学、艺术学；\n研究生:教育学（04）、艺术学（13）","本科：教育学类、音乐与舞蹈学类；\n研究生：教育（0451）、艺术学（1301）、音乐（1352）","本科：艺术教育、音乐学、音乐教育、音乐表演\n研究生：学科教学（音乐）（045111）、艺术学（130101）、音乐（135200）","取得与报考学历相应的学位、取得与报考岗位相应的教师资格证书","笔试、面试","小学教师岗位（D类）",null,"公益一类","全额拨款","0459-6165929"]
["大庆市大同区教育局","大同区老山头乡中学","小学体育教师","00592103",1,"中小学教师类D类","小学教师岗位","005921","03","不限","专业技术岗位","专业技术职称初级岗位","不限","大学本科（预备技师（技师）班）及以上","学士学位及以上","本科：教育学；\n研究生:教育学（04）","本科：体育学类；\n研究生：教育（0451）、体育（0452）、体育学（0403）","本科：体育教育、运动训练、运动人体科学、社会体育指导与管理；\n研究生：学科教学（体育）（045112）、体育（045200）、体育教学（045201）、体育学（040300）、社会体育指导（045204）","取得与报考学历相应的学位、取得与报考岗位相应的教师资格证书","笔试、面试","小学教师岗位（D类）",null,"公益一类","全额拨款","0459-6165929"]
["大庆市大同区教育局","大同区老山头乡中学","中学政治教师","00592104",1,"中小学教师类D类","中学教师岗位","005921","04","不限","专业技术岗位","专业技术职称初级岗位","不限","大学本科（预备技师（技师）班）及以上","学士学位及以上","不限","不限","不限","取得与报考学历相应的学位、取得与报考岗位相应的教师资格证书","笔试、面试","中学教师岗位（D类）",null,"公益一类","全额拨款","0459-6165929"]
["大庆市大同区教育局","大同区老山头乡中学","中学体育教师","00592105",1,"中小学教师类D类","中学教师岗位","005921","05","不限","专业技术岗位","专业技术职称初级岗位","不限","大学本科（预备技师（技师）班）及以上","学士学位及以上","本科：教育学；\n研究生:教育学（04）","本科：体育学类；\n研究生：教育（0451）、体育（0452）、体育学（0403）","本科：体育教育、运动训练、运动人体科学、社会体育指导与管理；\n研究生：学科教学（体育）（045112）、体育（045200）、体育教学（045201）、体育学（040300）、社会体育指导（045204）","取得与报考学历相应的学位、取得与报考岗位相应的教师资格证书","笔试、面试","中学教师岗位（D类）",null,"公益一类","全额拨款","0459-6165929"]
["大庆市大同区教育局","大同区老山头乡中学","中学心理健康教师","00592106",1,"中小学教师类D类","中学教师岗位","005921","06","不限","专业技术岗位","专业技术职称初级岗位","不限","大学本科（预备技师（技师）班）及以上","学士学位及以上","本科：理学；\n研究生:理学（07）、教育学（04）","本科：心理学类；\n研究生：心理学（0402）、心理学（0771）、\n教育（0451）、应用心理（0454）","本科：心理学、应用心理学；\n研究生：心理学（040200）、基础心理学（040201）、发展与教育心理学（040202）、应用心理学（040203）、心理学（077100）、基础心理学（077101）、发展与教育心理学（077102）、应用心理学（077103）、心理健康教育（045116）、应用心理（045400）","取得与报考学历相应的学位、取得与报考岗位相应的教师资格证书","笔试、面试","中学教师岗位（D类）",null,"公益一类","全额拨款","0459-6165929"]
["大庆市大同区教育局","大同区和平学校","小学语文教师","00592201",1,"中小学教师类D类","小学教师岗位","005922","01","不限","专业技术岗位","专业技术职称初级岗位","不限","大学本科（预备技师（技师）班）及以上","学士学位及以上","\n本科：文学、教育学;\n研究生：文学(05)、教育学(04)","\n本科：中国语言文学类、教育学类;\n研究生：中国语言文学(0501)、教育学(0401)、教育（0451）","\n本科：汉语言文学、教育学、小学教育;\n研究生：中国古代文学(050105)、中国现当代文学(050106)、教育学（040100）、学科教学（语文）（045103）","取得与报考学历相应的学位、取得与报考岗位相应的教师资格证书","笔试、面试","小学教师岗位（D类）",null,"公益一类","全额拨款","0459-6165929"]
["大庆市大同区教育局","大同区和平学校","小学数学教师","00592202",1,"中小学教师类D类","小学教师岗位","005922","02","不限","专业技术岗位","专业技术职称初级岗位","不限","大学本科（预备技师（技师）班）及以上","学士学位及以上","本科：理学；\n研究生:理学（07）、教育学（04）","本科：数学类；\n研究生：教育（0451）、数学（0701）","本科：数学与应用数学；\n研究生：学科教学（数学）（045104）、数学（070100）、基础数学（070101）、计算数学（070102）、应用数学（070104）","取得与报考学历相应的学位、取得与报考岗位相应的教师资格证书","笔试、面试","小学教师岗位（D类）",null,"公益一类","全额拨款","0459-6165929"]
["大庆市大同区教育局","大同区和平学校","小学英语教师","00592203",2,"中小学教师类D类","小学教师岗位","005922","03","不限","专业技术岗位","专业技术职称初级岗位","不限","大学本科（预备技师（技师）班）及以上","学士学位及以上","\n本科：文学\n研究生：教育学(04)","\n本科：外国语言文学类\n研究生：教育（0451）","\n本科：英语\n研究生：学科教学（英语）（045108）","取得与报考学历相应的学位、取得与报考岗位相应的教师资格证书","笔试、面试","小学教师岗位（D类）",null,"公益一类","全额拨款","0459-6165929"]
["大庆市大同区教育局","大同区和平学校","小学体育教师","00592204",1,"中小学教师类D类","小学教师岗位","005922","04","不限","专业技术岗位","专业技术职称初级岗位","不限","大学本科（预备技师（技师）班）及以上","学士学位及以上","本科：教育学；\n研究生:教育学（04）","本科：体育学类；\n研究生：教育（0451）、体育（0452）、体育学（0403）","本科：体育教育、运动训练、运动人体科学、社会体育指导与管理；\n研究生：学科教学（体育）（045112）、体育（045200）、体育教学（045201）、体育学（040300）、社会体育指导（045204）","取得与报考学历相应的学位、取得与报考岗位相应的教师资格证书","笔试、面试","小学教师岗位（D类）",null,"公益一类","全额拨款","0459-6165929"]
["大庆市大同区教育局","大同区和平学校","小学美术教师","00592205",1,"中小学教师类D类","小学教师岗位","005922","05","不限","专业技术岗位","专业技术职称初级岗位","不限","大学本科（预备技师（技师）班）及以上","学士学位及以上","本科：教育学、艺术学；\n研究生:教育学（04）、艺术学（13）","本科：教育学类、美术学类；\n研究生：教育（0451）、艺术学（1301）","本科：艺术教育、美术学、美术教育；\n研究生：学科教学（美术）（045113）、艺术学（130101）","取得与报考学历相应的学位、取得与报考岗位相应的教师资格证书","笔试、面试","小学教师岗位（D类）",null,"公益一类","全额拨款","0459-6165929"]
["大庆市大同区教育局","大同区和平学校","中学物理教师","00592206",1,"中小学教师类D类","中学教师岗位","005922","06","不限","专业技术岗位","专业技术职称初级岗位","不限","大学本科（预备技师（技师）班）及以上","学士学位及以上","不限","不限","不限","取得与报考学历相应的学位、取得与报考岗位相应的教师资格证书","笔试、面试","中学教师岗位（D类）",null,"公益一类","全额拨款","0459-6165929"]
["大庆市大同区教育局","大同区和平学校","中学政治教师","00592207",1,"中小学教师类D类","中学教师岗位","005922","07","不限","专业技术岗位","专业技术职称初级岗位","不限","大学本科（预备技师（技师）班）及以上","学士学位及以上","不限","不限","不限","取得与报考学历相应的学位、取得与报考岗位相应的教师资格证书","笔试、面试","中学教师岗位（D类）",null,"公益一类","全额拨款","0459-6165929"]
["大庆市大同区教育局","大同区和平学校","中学美术教师","00592208",1,"中小学教师类D类","中学教师岗位","005922","08","不限","专业技术岗位","专业技术职称初级岗位","不限","大学本科（预备技师（技师）班）及以上","学士学位及以上","本科：教育学、艺术学；\n研究生:教育学（04）、艺术学（13）","本科：教育学类、美术学类；\n研究生：教育（0451）、艺术学（1301）","本科：艺术教育、美术学、美术教育；\n研究生：学科教学（美术）（045113）、艺术学（130101）","取得与报考学历相应的学位、取得与报考岗位相应的教师资格证书","笔试、面试","中学教师岗位（D类）",null,"公益一类","全额拨款","0459-6165929"]
["大庆市大同区教育局","大同区和平学校","中学地理教师","00592209",1,"中小学教师类D类","中学教师岗位","005922","09","不限","专业技术岗位","专业技术职称初级岗位","不限","大学本科（预备技师（技师）班）及以上","学士学位及以上","不限","不限","不限","取得与报考学历相应的学位、取得与报考岗位相应的教师资格证书","笔试、面试","中学教师岗位（D类）",null,"公益一类","全额拨款","0459-6165929"]
["大庆市大同区教育局","大同区和平学校","中学历史教师","00592210",1,"中小学教师类D类","中学教师岗位","005922","10","不限","专业技术岗位","专业技术职称初级岗位","不限","大学本科（预备技师（技师）班）及以上","学士学位及以上","本科：历史学　　　\n研究生：历史学(06)","本科：历史学类\n研究生：中国史(0602)","本科：历史学\n研究生：中国史（060200）","取得与报考学历相应的学位、取得与报考岗位相应的教师资格证书","笔试、面试","中学教师岗位（D类）",null,"公益一类","全额拨款","0459-6165929"]
["大庆市大同区教育局","大同区新华子弟学校","小学数学教师","00592301",1,"中小学教师类D类","小学教师岗位","005923","01","不限","专业技术岗位","专业技术职称初级岗位","不限","大学本科（预备技师（技师）班）及以上","学士学位及以上","本科：理学；\n研究生:理学（07）、教育学（04）","本科：数学类；\n研究生：教育（0451）、数学（0701）","本科：数学与应用数学；\n研究生：学科教学（数学）（045104）、数学（070100）、基础数学（070101）、计算数学（070102）、应用数学（070104）","取得与报考学历相应的学位、取得与报考岗位相应的教师资格证书","笔试、面试","小学教师岗位（D类）",null,"公益一类","全额拨款","0459-6165929"]
["大庆市大同区教育局","大庆市第三十二中学","中学语文教师","00592401",1,"中小学教师类D类","中学教师岗位","005924","01","不限","专业技术岗位","专业技术职称初级岗位","不限","大学本科（预备技师（技师）班）及以上","学士学位及以上","\n本科：文学、教育学\n研究生：文学（05)、教育学(04)","\n本科：中国语言文学类、教育学类\n研究生：中国语言文学(0501)、教育学(0401)、教育（0451）","\n本科：汉语言文学、教育学；\n研究生：中国古代文学(050105)、中国现当代文学(050106)、教育学（040100）、学科教学（语文）（045103）","取得与报考学历相应的学位、取得与报考岗位相应的教师资格证书","笔试、面试","中学教师岗位（D类）",null,"公益一类","全额拨款","0459-6165929"]
["大庆市大同区教育局","大庆市第三十二中学","中学政治教师","00592402",1,"中小学教师类D类","中学教师岗位","005924","02","不限","专业技术岗位","专业技术职称初级岗位","不限","大学本科（预备技师（技师）班）及以上","学士学位及以上","不限","不限","不限","取得与报考学历相应的学位、取得与报考岗位相应的教师资格证书","笔试、面试","中学教师岗位（D类）",null,"公益一类","全额拨款","0459-6165929"]
["大庆市大同区教育局","大庆市第三十二中学","中学体育教师","00592403",1,"中小学教师类D类","中学教师岗位","005924","03","不限","专业技术岗位","专业技术职称初级岗位","不限","大学本科（预备技师（技师）班）及以上","学士学位及以上","本科：教育学；\n研究生:教育学（04）","本科：体育学类；\n研究生：教育（0451）、体育（0452）、体育学（0403）","本科：体育教育、运动训练、运动人体科学、社会体育指导与管理；\n研究生：学科教学（体育）（045112）、体育（045200）、体育教学（045201）、体育学（040300）、社会体育指导（045204）","取得与报考学历相应的学位、取得与报考岗位相应的教师资格证书","笔试、面试","中学教师岗位（D类）",null,"公益一类","全额拨款","0459-6165929"]
["大庆市大同区教育局","大庆市第三十二中学","中学生物教师","00592404",1,"中小学教师类D类","中学教师岗位","005924","04","不限","专业技术岗位","专业技术职称初级岗位","不限","大学本科（预备技师（技师）班）及以上","学士学位及以上","本科：理学　　　　\n研究生：理学(07)","本科：生物科学类\n研究生：生物学(0710)","本科：生物科学\n研究生：生物学(071000)","取得与报考学历相应的学位、取得与报考岗位相应的教师资格证书","笔试、面试","中学教师岗位（D类）",null,"公益一类","全额拨款","0459-6165929"]
["大庆市大同区教育局","大庆市第三十二中学","中学心理健康教师","00592405",1,"中小学教师类D类","中学教师岗位","005924","05","不限","专业技术岗位","专业技术职称初级岗位","不限","大学本科（预备技师（技师）班）及以上","学士学位及以上","本科：理学；\n研究生:理学（07）、教育学（04）","本科：心理学类；\n研究生：心理学（0402）、心理学（0771）、\n教育（0451）、应用心理（0454）","本科：心理学、应用心理学；\n研究生：心理学（040200）、基础心理学（040201）、发展与教育心理学（040202）、应用心理学（040203）、心理学（077100）、基础心理学（077101）、发展与教育心理学（077102）、应用心理学（077103）、心理健康教育（045116）、应用心理（045400）","取得与报考学历相应的学位、取得与报考岗位相应的教师资格证书","笔试、面试","中学教师岗位（D类）",null,"公益一类","全额拨款","0459-6165929"]
["大庆市大同区教育局","大庆市第五十二中学","中学数学教师","00592501",1,"中小学教师类D类","中学教师岗位","005925","01","不限","专业技术岗位","专业技术职称初级岗位","不限","大学本科（预备技师（技师）班）及以上","学士学位及以上","本科：理学；\n研究生:理学（07）、教育学（04）","本科：数学类；\n研究生：教育（0451）、数学（0701）","本科：数学与应用数学；\n研究生：学科教学（数学）（045104）、数学（070100）、基础数学（070101）、计算数学（070102）、应用数学（070104）","取得与报考学历相应的学位、取得与报考岗位相应的教师资格证书","笔试、面试","中学教师岗位（D类）",null,"公益一类","全额拨款","0459-6165929"]
["大庆市大同区教育局","大庆市第五十二中学","中学物理教师","00592502",1,"中小学教师类D类","中学教师岗位","005925","02","不限","专业技术岗位","专业技术职称初级岗位","不限","大学本科（预备技师（技师）班）及以上","学士学位及以上","不限","不限","不限","取得与报考学历相应的学位、取得与报考岗位相应的教师资格证书","笔试、面试","中学教师岗位（D类）",null,"公益一类","全额拨款","0459-6165929"]
["大庆市大同区教育局","大庆市第五十二中学","中学政治教师","00592503",1,"中小学教师类D类","中学教师岗位","005925","03","不限","专业技术岗位","专业技术职称初级岗位","不限","大学本科（预备技师（技师）班）及以上","学士学位及以上","不限","不限","不限","取得与报考学历相应的学位、取得与报考岗位相应的教师资格证书","笔试、面试","中学教师岗位（D类）",null,"公益一类","全额拨款","0459-6165929"]
["大庆市大同区教育局","大庆市第五十二中学","中学地理教师","00592504",1,"中小学教师类D类","中学教师岗位","005925","04","不限","专业技术岗位","专业技术职称初级岗位","不限","大学本科（预备技师（技师）班）及以上","学士学位及以上","不限","不限","不限","取得与报考学历相应的学位、取得与报考岗位相应的教师资格证书","笔试、面试","中学教师岗位（D类）",null,"公益一类","全额拨款","0459-6165929"]
["大庆市大同区教育局","大同区同祥学校","中学政治教师","00592601",1,"中小学教师类D类","中学教师岗位","005926","01","不限","专业技术岗位","专业技术职称初级岗位","不限","大学本科（预备技师（技师）班）及以上","学士学位及以上","不限","不限","不限","取得与报考学历相应的学位、取得与报考岗位相应的教师资格证书","笔试、面试","中学教师岗位（D类）",null,"公益一类","全额拨款","0459-6165929"]
["大庆市大同区教育局","大同区同祥学校","中学地理教师","00592602",1,"中小学教师类D类","中学教师岗位","005926","02","不限","专业技术岗位","专业技术职称初级岗位","不限","大学本科（预备技师（技师）班）及以上","学士学位及以上","不限","不限","不限","取得与报考学历相应的学位、取得与报考岗位相应的教师资格证书","笔试、面试","中学教师岗位（D类）",null,"公益一类","全额拨款","0459-6165929"]
["大庆市大同区教育局","大同区同祥学校","中学生物教师","00592603",1,"中小学教师类D类","中学教师岗位","005926","03","不限","专业技术岗位","专业技术职称初级岗位","不限","大学本科（预备技师（技师）班）及以上","学士学位及以上","本科：理学　　　　\n研究生：理学(07)","本科：生物科学类\n研究生：生物学(0710)","本科：生物科学\n研究生：生物学(071000)","取得与报考学历相应的学位、取得与报考岗位相应的教师资格证书","笔试、面试","中学教师岗位（D类）",null,"公益一类","全额拨款","0459-6165929"]
["大庆市大同区教育局","大同区同祥学校","中学心理健康教师","00592604",1,"中小学教师类D类","中学教师岗位","005926","04","不限","专业技术岗位","专业技术职称初级岗位","不限","大学本科（预备技师（技师）班）及以上","学士学位及以上","本科：理学；\n研究生:理学（07）、教育学（04）","本科：心理学类；\n研究生：心理学（0402）、心理学（0771）、\n教育（0451）、应用心理（0454）","本科：心理学、应用心理学；\n研究生：心理学（040200）、基础心理学（040201）、发展与教育心理学（040202）、应用心理学（040203）、心理学（077100）、基础心理学（077101）、发展与教育心理学（077102）、应用心理学（077103）、心理健康教育（045116）、应用心理（045400）","取得与报考学历相应的学位、取得与报考岗位相应的教师资格证书","笔试、面试","中学教师岗位（D类）",null,"公益一类","全额拨款","0459-6165929"]
["萨尔图区所辖街道办事处A","街道办事处\n下设事业单位","职员（助力乡村振兴“万人计划”到社区任职大学生）","00552101",4,"综合管理类A类","综合管理类","005521","01","男","专业技术岗位","专业技术职称初级岗位","不限","大学本科（预备技师（技师）班）及以上","不限","不限","不限","不限","1.中共党员（含预备党员）\n2.限大庆市行政区划内户籍\n3.招聘对象年龄须 35 周岁及以下，具有研究生及以上学历的，年龄可放宽至40周岁\n4.此岗位为万人计划岗位，需要到村(社区)任职，在村(社区)服务期限原则上不低于5年(含在乡镇、街道培养锻炼时间)","笔试、面试","综合管理类（A类）","五年（含试用期）","公益一类","全额拨款","0459-6378867"]
["萨尔图区所辖街道办事处A","街道办事处\n下设事业单位","职员（助力乡村振兴“万人计划”到社区任职大学生）","00552102",4,"综合管理类A类","综合管理类","005521","02","女","专业技术岗位","专业技术职称初级岗位","不限","大学本科（预备技师（技师）班）及以上","不限","不限","不限","不限","1.中共党员（含预备党员）\n2.限大庆市行政区划内户籍\n3.招聘对象年龄须 35 周岁及以下，具有研究生及以上学历的，年龄可放宽至40周岁\n4.此岗位为万人计划岗位，需要到村(社区)任职，在村(社区)服务期限原则上不低于5年(含在乡镇、街道培养锻炼时间)","笔试、面试","综合管理类（A类）","五年（含试用期）","公益一类","全额拨款","0459-6378867"]
["萨尔图区所辖街道办事处B","街道办事处\n下设事业单位","职员（助力乡村振兴“万人计划”到社区任职大学生）","00552201",5,"综合管理类A类","综合管理类","005522","01","男","专业技术岗位","专业技术职称初级岗位","不限","大学本科（预备技师（技师）班）及以上","不限","不限","不限","不限","1.限大庆市行政区划内户籍\n2.招聘对象年龄须 35 周岁及以下，具有研究生及以上学历的，年龄可放宽至40周岁\n3.此岗位为万人计划岗位，需要到村(社区)任职，在村(社区)服务期限原则上不低于5年(含在乡镇、街道培养锻炼时间)","笔试、面试","综合管理类（A类）","五年（含试用期）","公益一类","全额拨款","0459-6378867"]
["萨尔图区所辖街道办事处B","街道办事处\n下设事业单位","职员（助力乡村振兴“万人计划”到社区任职大学生）","00552202",5,"综合管理类A类","综合管理类","005522","02","女","专业技术岗位","专业技术职称初级岗位","不限","大学本科（预备技师（技师）班）及以上","不限","不限","不限","不限","1.限大庆市行政区划内户籍\n2.招聘对象年龄须 35 周岁及以下，具有研究生及以上学历的，年龄可放宽至40周岁\n3.此岗位为万人计划岗位，需要到村(社区)任职，在村(社区)服务期限原则上不低于5年(含在乡镇、街道培养锻炼时间)","笔试、面试","综合管理类（A类）","五年（含试用期）","公益一类","全额拨款","0459-6378867"]
["红岗区所辖街道办事处","街道办事处\n下设事业单位","职员（助力乡村振兴“万人计划”到社区任职大学生）","00580101",2,"综合管理类A类","综合管理类","005801","01","男","专业技术岗位","专业技术职称初级岗位","不限","大学本科（预备技师（技师）班）及以上","不限","不限","不限","不限","1.招聘对象年龄须 35 周岁及以下，具有研究生及以上学历的，年龄可放宽至40周岁\n2.此岗位为万人计划岗位，需要到村(社区)任职，在村(社区)服务期限原则上不低于5年(含在乡镇、街道培养锻炼时间)","笔试、面试","综合管理类（A类）","五年（含试用期）","公益一类","全额拨款","0459-2799281"]
["红岗区所辖街道办事处","街道办事处\n下设事业单位","职员（助力乡村振兴“万人计划”到社区任职大学生）","00580102",2,"综合管理类A类","综合管理类","005801","02","女","专业技术岗位","专业技术职称初级岗位","不限","大学本科（预备技师（技师）班）及以上","不限","不限","不限","不限","1.招聘对象年龄须 35 周岁及以下，具有研究生及以上学历的，年龄可放宽至40周岁\n2.此岗位为万人计划岗位，需要到村(社区)任职，在村(社区)服务期限原则上不低于5年(含在乡镇、街道培养锻炼时间)","笔试、面试","综合管理类（A类）","五年（含试用期）","公益一类","全额拨款","0459-2799281"]
["肇州县所辖乡镇人民政府","乡镇下设事业单位","职员（助力乡村振兴“万人计划”到村任职大学生）","00510101",3,"综合管理类A类","综合管理类","005101","01","男","专业技术岗位","专业技术职称初级岗位","不限","大学本科（预备技师（技师）班）及以上","不限","不限","不限","不限","1.招聘对象年龄须 35 周岁及以下，具有研究生及以上学历的，年龄可放宽至40周岁\n2.此岗位为万人计划岗位，需要到村(社区)任职，在村(社区)服务期限原则上不低于5年(含在乡镇、街道培养锻炼时间)","笔试、面试","综合管理类（A类）","五年（含试用期）","公益一类","全额拨款","0459-8518311"]
["肇州县所辖乡镇人民政府","乡镇下设事业单位","职员（助力乡村振兴“万人计划”到村任职大学生）","00510102",3,"综合管理类A类","综合管理类","005101","02","女","专业技术岗位","专业技术职称初级岗位","不限","大学本科（预备技师（技师）班）及以上","不限","不限","不限","不限","1.招聘对象年龄须 35 周岁及以下，具有研究生及以上学历的，年龄可放宽至40周岁\n2.此岗位为万人计划岗位，需要到村(社区)任职，在村(社区)服务期限原则上不低于5年(含在乡镇、街道培养锻炼时间)","笔试、面试","综合管理类（A类）","五年（含试用期）","公益一类","全额拨款","0459-8518311"]
["肇源县社区管理委员会","综合便民服务中心","职员（助力乡村振兴“万人计划”到社区任职大学生）","00521301",2,"综合管理类A类","综合管理类","005213","01","不限","管理岗位","管理岗科员岗位","不限","大学本科（预备技师（技师）班）及以上","不限","不限","不限","不限","1.招聘对象年龄须 35 周岁及以下，具有研究生及以上学历的，年龄可放宽至40周岁\n2.此岗位为万人计划岗位，需要到村(社区)任职，在村(社区)服务期限原则上不低于5年(含在乡镇、街道培养锻炼时间)","笔试、面试","综合管理类（A类）","五年（含试用期）","公益一类","全额拨款","0459-8223376"]
[{"$nulls":4},{"$f":"SUM(E4:E139)","v":190}]

{"sheet":"xlhide","index":1,"n_rows":5,"n_cols":6,"rows_kept":5,"hidden":true}
["综合管理类"]
["社会科学专技类"]
["自然科学专技类"]
["小学教师岗位","中学教师岗位"]
["中医临床岗位","西医临床岗位","药剂岗位","护理岗位","医学技术岗位","公共卫生管理岗位"]